bitfinex-derivatives/quotes_ETHF0:USTF0_20250726
["timestamp","ask_amount","ask_price","bid_price","bid_amount"]
[1753549752496,0.7259,3725.2,3725.1,0.4734]
[1753549752704,1.8319,3725.2,3725.0,0.53675]
[1753549752998,3.2078,3725.8,3724.9,0.9779]
[1753549752999,1.8319,3725.0,3724.9,0.9779]
[1753549753194,5.0397,3725.0,3724.6,1.01021]
[1753549753393,1.64278,3724.9,3724.7,0.4734]
[1753549753599,0.4329,3724.8,3724.7,0.9779]
[1753549753902,1.8319,3724.8,3724.7,0.9779]
[1753549754297,2.36868,3724.8,3724.7,0.9779]
[1753549755002,1.8319,3724.8,3724.7,0.9779]
[1753549755202,1.8319,3724.8,3724.7,1.7797]
[1753549755403,1.8319,3724.8,3724.7,2.0738]
[1753549757204,2.36868,3724.8,3724.7,1.141]
[1753549757501,1.8319,3724.8,3724.7,1.537]
[1753549757697,1.8319,3724.8,3724.7,2.0738]
[1753549757897,1.3725,3724.8,3724.7,2.0738]
[1753549758107,3.2078,3725.1,3725.0,1.60035]
[1753549758406,3.2078,3725.1,3725.0,2.07375]
[1753549759202,3.5475,3725.1,3725.0,2.07375]
[1753549759702,0.3397,3725.1,3725.0,2.07375]
[1753549759901,0.6466,3725.1,3725.0,2.07375]
[1753549760707,1.0795,3725.1,3725.0,2.07375]
[1753549761605,1.3725,3725.1,3725.0,2.07375]
[1753549761904,2.36864,3725.1,3725.0,0.3133]
[1753549762107,1.56957,3724.9,3724.8,0.7867]
[1753549762303,1.56957,3724.9,3724.8,0.3133]
[1753549762304,2.36867,3724.9,3724.8,0.3133]
[1753549763102,1.8319,3724.9,3724.8,0.9779]
[1753549763305,1.8319,3724.9,3724.8,1.67778]
[1753549763506,1.8319,3724.9,3724.8,2.07378]
[1753549763715,1.8319,3724.9,3724.8,1.537]
[1753549763914,2.36867,3724.9,3724.8,1.537]
[1753549764117,1.8319,3724.9,3724.8,1.141]
[1753549764505,1.8319,3724.9,3724.8,2.07378]
[1753549765006,2.36867,3724.9,3724.8,0.9779]
[1753549765202,1.8319,3724.9,3724.8,0.9779]
[1753549765812,1.8319,3724.9,3724.8,1.51468]
[1753549766006,1.8319,3724.9,3724.8,2.07378]
[1753549766608,1.0795,3724.9,3724.8,2.07378]
[1753549767210,1.8542,3724.9,3724.8,2.07378]
[1753549770312,1.8542,3724.9,3724.8,1.537]
[1753549770514,1.8542,3724.9,3724.8,2.07378]
[1753549770712,1.843,3724.9,3724.8,1.79038]
[1753549770910,1.843,3724.9,3724.8,2.09828]
[1753549771414,1.843,3724.9,3724.8,1.5615]
[1753549771615,1.843,3724.9,3724.8,2.09828]
[1753549772114,1.843,3724.9,3724.8,1.5615]
[1753549772414,2.37977,3724.9,3724.8,1.5615]
[1753549772909,2.37977,3724.9,3724.8,1.4596]
[1753549773107,2.37977,3724.9,3724.8,0.9886]
[1753549773815,2.59471552,3724.9,3724.8,0.9886]
[1753549774214,2.37977,3724.9,3724.8,0.9886]
[1753549774506,1.8322,3724.7,3724.6,2.01801]
[1753549774714,1.8322,3724.7,3724.6,1.4812]
[1753549775513,1.8322,3724.7,3724.6,2.01801]
[1753549775715,1.8322,3724.7,3724.6,1.4812]
[1753549776109,1.8322,3724.7,3724.6,2.01801]
[1753549776909,2.369,3724.7,3724.6,1.4812]
[1753549777110,1.90174,3724.4,3724.3,0.9349]
[1753549777309,2.36904,3724.4,3724.3,0.9349]
[1753549777913,1.8322,3724.4,3724.3,1.4812]
[1753549778518,2.36904,3724.4,3724.3,1.4812]
[1753549778721,2.36904,3724.4,3724.3,0.34940031]
[1753549779610,3.14861601,3724.4,3724.3,0.34940031]
[1753549779815,3.1486165,3724.4,3724.3,0.34940031]
[1753549781514,1.27797,3724.2,3724.1,0.9349]
[1753549781817,2.36907,3724.2,3724.1,1.2843085]
[1753549783516,2.36907,3724.2,3724.1,0.3494085]
[1753549785220,2.36907,3724.2,3724.1,0.35324955]
[1753549788933,3.14756233,3724.2,3724.1,0.35324955]
[1753549789134,3.14756278,3724.2,3724.1,0.35324955]
[1753549789336,3.14744256,3724.2,3724.1,0.35324955]
[1753549789635,2.36907,3724.2,3724.1,0.35324955]
[1753549791430,2.36907,3724.2,3724.1,1.28814955]
[1753549794826,2.36907,3724.2,3724.1,1.43484955]
[1753549795031,2.36907,3724.2,3724.1,1.83444955]
[1753549796136,2.36907,3724.2,3724.1,1.43484955]
[1753549796335,2.36907,3724.2,3724.1,1.45844616]
[1753549797638,1.60917,3724.2,3724.1,1.83664616]
[1753549797941,2.35737,3724.2,3724.1,1.83664616]
[1753549798442,2.35737,3724.2,3724.1,1.45844616]
[1753549799240,2.35737,3724.2,3724.1,1.83664616]
[1753549800236,3.2078,3724.5,3724.4,1.3924]
[1753549800539,3.2078,3724.5,3724.4,1.84660265]
[1753549800740,3.74462,3724.5,3724.4,1.84660265]
[1753549801337,4.07052,3724.5,3724.4,1.84660265]
[1753549801541,3.2078,3724.5,3724.4,1.84660265]
[1753549801742,3.74462,3724.5,3724.4,1.84660265]
[1753549801932,4.07052,3724.5,3724.4,1.84660265]
[1753549802343,4.84958069,3724.5,3724.4,1.84660265]
[1753549802645,6.34988069,3724.5,3724.4,1.84660265]
[1753549805144,5.60168069,3724.5,3724.4,1.84660265]
[1753549808347,5.60168069,3724.5,3724.4,1.83266921]
[1753549808647,0.77906069,3724.5,3724.4,2.36950921]
[1753549808851,0.53675,3725.0,3724.9,2.01037]
[1753549809040,0.53675,3725.0,3724.9,1.83266921]
[1753549809243,0.6295,3725.2,3725.1,0.6288]
[1753549809545,1.94749975,3725.2,3725.1,1.83266921]
[1753549809942,1.61473,3725.2,3725.1,1.83266921]
[1753549810443,2.05633,3725.2,3725.1,1.83266921]
[1753549811543,0.3259,3725.2,3725.1,2.36940921]
[1753549811847,0.6295,3725.4,3725.3,1.4736]
[1753549812047,0.6295,3725.4,3725.3,1.83266921]
[1753549812247,1.078,3725.4,3725.3,1.83266921]
[1753549812442,0.3259,3725.4,3725.3,2.36937921]
[1753549812643,3.5114,3725.5,3725.4,0.7636]
[1753549812948,4.82248,3725.5,3725.4,1.83266921]
[1753549813449,3.74448,3725.5,3725.4,1.83266921]
[1753549813750,3.5114,3725.5,3725.4,2.36936921]
[1753549813950,3.8373,3725.5,3725.4,2.36936921]
[1753549814344,3.8373,3725.5,3725.4,2.0103]
[1753549814648,0.6295,3725.5,3725.4,2.36873168]
[1753549815546,1.73034,3725.8,3725.7,0.6288]
[1753549815751,1.73334,3725.8,3725.7,1.83203168]
[1753549816347,1.8262,3725.8,3725.7,1.83203168]
[1753549816548,1.078,3725.8,3725.7,2.36868168]
[1753549816947,0.3036,3725.8,3725.7,2.36868168]
[1753549817149,0.6295,3725.8,3725.7,2.36868168]
[1753549817647,1.078,3725.8,3725.7,2.36868168]
[1753549818042,1.5196,3725.8,3725.7,2.36868168]
[1753549818354,1.8262,3725.8,3725.7,2.36868168]
[1753549818553,1.8262,3725.8,3725.7,1.83203168]
[1753549819050,2.36284,3725.8,3725.7,1.83203168]
[1753549821455,1.8262,3725.8,3725.7,1.4736]
[1753549822449,1.8262,3725.8,3725.7,1.82725417]
[1753549823048,1.8262,3725.8,3725.7,2.36384913]
[1753549823647,1.8262,3725.8,3725.7,1.82719913]
[1753549823848,2.36284,3725.8,3725.7,1.82719913]
[1753549825150,1.8262,3725.8,3725.7,1.82719913]
[1753549826351,2.36284,3725.8,3725.7,1.82719913]
[1753549826552,2.36284,3725.8,3725.7,2.36384913]
[1753549826553,1.8262,3725.8,3725.7,2.36384913]
[1753549826748,1.8262,3725.8,3725.7,1.82719913]
[1753549826947,2.36284,3725.8,3725.7,1.82719913]
[1753549827452,1.8262,3725.8,3725.7,1.82719913]
[1753549828255,1.8262,3725.8,3725.7,2.36384913]
[1753549828952,1.8262,3725.8,3725.7,1.11119913]
[1753549829150,2.36284,3725.8,3725.7,0.35359913]
[1753549830057,1.8262,3725.8,3725.7,0.35359913]
[1753549830656,2.36284,3725.8,3725.7,0.35359913]
[1753549831458,1.8262,3725.8,3725.7,0.35359913]
[1753549831658,1.8262,3725.8,3725.7,0.3538152]
[1753549832352,1.8262,3725.8,3725.6,0.53667]
[1753549832558,1.8262,3725.8,3725.7,0.35390598]
[1753549832958,1.8262,3725.8,3725.7,0.89055598]
[1753549833260,1.8262,3725.8,3725.7,0.35390598]
[1753549833461,1.8262,3725.8,3725.7,0.82460598]
[1753549833660,2.36284,3725.8,3725.7,0.82460598]
[1753549833857,1.8262,3725.8,3725.7,0.8247227]
[1753549834055,1.8262,3725.8,3725.7,0.3540227]
[1753549834456,0.6295,3725.8,3725.7,2.3586727]
[1753549835561,1.0478,3725.8,3725.7,2.3586727]
[1753549836461,1.49,3725.8,3725.7,2.3586727]
[1753549836961,1.49,3725.8,3725.7,2.35908923]
[1753549837763,1.8024,3725.8,3725.7,2.35908923]
[1753549838954,1.49,3725.8,3725.7,2.35908923]
[1753549839158,0.8454,3725.8,3725.7,2.35908923]
[1753549839564,1.0478,3725.8,3725.7,2.35908923]
[1753549839862,1.49,3725.8,3725.7,2.35908923]
[1753549840869,1.8024,3725.8,3725.7,2.35908923]
[1753549844867,0.8605,3726.1,3726.0,1.14491]
[1753549845067,2.58966155,3726.1,3726.0,2.34634923]
[1753549845565,2.58966155,3726.1,3726.0,1.97004923]
[1753549846266,2.58966155,3726.1,3726.0,1.97117295]
[1753549846766,2.58966155,3726.1,3726.0,2.03507295]
[1753549847266,2.58966155,3726.1,3726.0,1.97117295]
[1753549847663,2.27726155,3726.1,3726.0,2.34747295]
[1753549847868,1.8112,3726.1,3726.0,2.34747295]
[1753549848063,2.58958859,3726.1,3726.0,0.35556295]
[1753549848365,2.58958859,3726.1,3726.0,0.89217295]
[1753549848768,2.58958859,3726.1,3726.0,1.34493629]
[1753549849066,1.8112,3726.1,3726.0,2.22723629]
[1753549849570,2.58956212,3726.1,3726.0,1.91483629]
[1753549849770,1.8112,3726.1,3726.0,2.22723629]
[1753549850370,1.8112,3726.1,3726.0,1.85093629]
[1753549850770,1.8112,3726.1,3726.0,1.31432629]
[1753549850971,1.8112,3726.1,3726.0,1.10342629]
[1753549851171,2.58953942,3726.1,3726.0,0.63272629]
[1753549851372,3.12612942,3726.1,3726.0,0.63272629]
[1753549851668,3.12612942,3726.1,3726.0,1.31432629]
[1753549851669,2.58953942,3726.1,3726.0,1.31432629]
[1753549851862,1.8112,3726.1,3726.0,1.31432629]
[1753549852866,1.8112,3726.1,3726.0,1.85093629]
[1753549853971,1.8112,3726.1,3726.0,1.31432629]
[1753549855071,2.34779,3726.1,3726.0,1.31432629]
[1753549855271,1.8112,3726.1,3726.0,1.31432629]
[1753549855467,2.34779,3726.1,3726.0,1.31432629]
[1753549855669,1.8112,3726.1,3726.0,1.31432629]
[1753549856973,2.34779,3726.1,3726.0,1.31432629]
[1753549857479,1.8112,3726.1,3726.0,1.31432629]
[1753549858268,2.34779,3726.1,3726.0,1.66112629]
[1753549859976,3.12689479,3726.1,3726.0,0.33762629]
[1753549861469,3.12689479,3726.1,3726.0,0.77912629]
[1753549861673,3.12689479,3726.1,3726.0,1.08812629]
[1753549863778,3.12689479,3726.1,3726.0,0.64662629]
[1753549863978,3.12689479,3726.1,3726.0,0.33762629]
[1753549868383,3.12689479,3726.1,3725.3,0.9468]
[1753549868384,1.2513,3725.4,3725.3,0.9468]
[1753549868587,2.3288,3725.4,3725.3,0.9468]
[1753549868782,2.3288,3725.4,3725.3,1.2936]
[1753549869282,2.3288,3725.4,3725.3,1.3843]
[1753549869883,1.7921,3725.4,3725.3,1.3843]
[1753549870088,1.5049,3725.4,3725.3,1.3843]
[1753549870282,2.0416,3725.4,3725.3,1.3843]
[1753549875181,2.3288,3725.4,3725.3,1.3843]
[1753549875993,2.3288,3725.4,3725.3,0.9468]
[1753549876894,2.3288,3725.4,3725.3,0.7505]
[1753549879700,2.3288,3725.4,3725.3,0.9468]
[1753549879899,3.10693604,3725.4,3725.3,0.9468]
[1753549880108,1.7921,3725.1,3725.0,0.9468]
[1753549880314,1.7921,3725.1,3725.0,1.3843]
[1753549882004,0.3011,3725.3,3725.2,0.596]
[1753549882197,3.5089,3725.5,3725.2,1.3843]
[1753549882404,3.8513,3725.5,3725.3,0.7883]
[1753549882705,3.8513,3725.5,3725.4,1.3843]
[1753549882910,4.32813331,3725.5,3725.4,1.921]
[1753549883411,4.62923331,3725.5,3725.4,1.3843]
[1753549883613,5.16591331,3725.5,3725.4,1.3843]
[1753549883913,5.49063331,3725.5,3725.4,1.921]
[1753549884911,5.05663331,3725.5,3725.4,1.921]
[1753549886313,1.12033331,3725.5,3725.4,1.921]
[1753549886515,0.77793331,3725.5,3725.4,1.921]
[1753549886706,0.3424,3725.9,3725.8,1.92094]
[1753549886906,1.42196049,3725.9,3725.8,1.92094]
[1753549887401,1.84936049,3725.9,3725.8,1.92094]
[1753549888205,2.28936049,3725.9,3725.8,1.92094]
[1753549888912,1.84936049,3725.9,3725.8,1.92094]
[1753549889312,2.28936049,3725.9,3725.8,1.92094]
[1753549893014,1.5109,3725.9,3725.8,1.92094]
[1753549895116,1.0709,3725.9,3725.8,1.92094]
[1753549895616,1.5109,3725.9,3725.8,1.92094]
[1753549899707,2.04752,3725.9,3725.8,1.92094]
[1753549901216,2.33842,3725.9,3725.8,1.92094]
[1753549901418,1.77612,3725.9,3725.8,1.77354]
[1753549901611,2.33772,3725.9,3725.8,1.90174]
[1753549902419,1.8011,3725.9,3725.8,1.90174]
[1753549903420,2.33772,3725.9,3725.8,1.90174]
[1753549903824,2.33772,3725.9,3725.8,1.3651]
[1753549904022,2.33772,3725.9,3725.8,1.0257]
[1753549904222,2.33772,3725.9,3725.8,0.9468]
[1753549905122,2.33772,3725.9,3725.5,0.7318]
[1753549905123,1.24087,3725.6,3725.5,0.7318]
[1753549905317,2.31637,3725.6,3725.5,0.7318]
[1753549905524,1.0222,3725.4,3725.3,0.4904]
[1753549905721,1.8764,3725.4,3725.3,0.7318]
[1753549905922,1.7797,3725.4,3725.3,0.7318]
[1753549906627,1.7797,3725.4,3725.3,0.9235]
[1753549907023,2.3164,3725.4,3725.3,0.9235]
[1753549907227,1.7797,3725.4,3725.3,0.9235]
[1753549908930,1.7797,3725.4,3725.3,1.46021]
[1753549909332,1.7797,3725.4,3725.3,1.85511]
[1753549911733,1.7797,3725.4,3725.3,1.3184]
[1753549912033,1.7797,3725.4,3725.3,1.85511]
[1753549912336,2.3164,3725.4,3725.3,1.85511]
[1753549912923,2.3164,3725.4,3725.3,1.6532117]
[1753549913124,2.3164,3725.4,3725.3,2.1899217]
[1753549913534,2.3164,3725.4,3725.3,1.6532117]
[1753549913740,2.3164,3725.4,3725.3,2.1899217]
[1753549914338,1.7797,3725.4,3725.3,2.1899217]
[1753549919538,1.7797,3725.4,3725.3,1.85511]
[1753549919738,1.7797,3725.4,3725.3,2.19003267]
[1753549920734,1.7797,3725.4,3725.3,1.65332267]
[1753549920930,1.7797,3725.4,3725.3,2.19003267]
[1753549921135,1.7797,3725.4,3725.3,1.65332267]
[1753549922243,1.7797,3725.4,3725.3,2.19003267]
[1753549924442,2.3164,3725.4,3725.3,2.19003267]
[1753549924647,1.7797,3725.4,3725.3,2.19003267]
[1753549925542,1.7797,3725.4,3725.3,2.19002268]
[1753549927545,1.0488,3725.4,3725.3,2.19002268]
[1753549927749,0.53667,3725.6,3725.3,2.19002268]
[1753549927750,0.6397,3725.7,3725.6,1.09727]
[1753549927949,0.6397,3725.7,3725.6,2.23898268]
[1753549929052,1.41917333,3725.7,3725.6,2.23898268]
[1753549929254,0.6397,3725.7,3725.6,2.23898268]
[1753549930054,1.0676,3725.7,3725.6,2.23898268]
[1753549932350,1.4674,3726.5,3726.4,0.5006]
[1753549932649,2.5725629,3726.5,3726.4,1.29021268]
[1753549932856,2.5725629,3726.5,3726.4,1.70231268]
[1753549933350,3.1091029,3726.5,3726.4,1.35021268]
[1753549933547,3.1091029,3726.5,3726.4,0.33491268]
[1753549934455,0.74727,3726.3,3726.2,0.5006]
[1753549934749,2.32927,3726.3,3726.2,0.8434278]
[1753549934954,3.1091329,3726.3,3726.2,0.8434278]
[1753549935158,3.1091329,3726.3,3726.2,1.2981278]
[1753549935555,2.5725629,3726.3,3726.2,1.2981278]
[1753549935756,2.5725629,3726.3,3726.2,1.8347078]
[1753549936051,2.5725629,3726.3,3726.2,2.2468078]
[1753549936246,2.5725629,3726.3,3726.2,2.24674358]
[1753549936247,1.8474629,3726.3,3726.2,2.24674358]
[1753549937060,2.2802629,3726.3,3726.2,2.24674358]
[1753549937662,2.27830015,3726.3,3726.2,2.24674358]
[1753549938859,1.5004,3726.3,3726.2,2.24674358]
[1753549939250,1.7927,3726.3,3726.2,2.24674358]
[1753549942265,1.7927,3726.3,3726.2,0.34276358]
[1753549942266,2.32927,3726.3,3726.2,0.34276358]
[1753549942764,0.5366,3726.1,3725.9,0.4547]
[1753549942959,1.4674,3726.0,3725.9,1.03722]
[1753549943164,1.7927,3726.0,3725.9,1.03722]
[1753549943362,1.7927,3726.0,3725.9,1.49192]
[1753549943565,1.7927,3726.0,3725.9,1.90402]
[1753549943866,1.7927,3726.0,3725.9,2.24632141]
[1753549944068,1.0676,3726.0,3725.9,2.24632141]
[1753549944262,0.8569,3726.0,3725.9,5.45412141]
[1753549945764,1.0676,3726.0,3725.9,5.45412141]
[1753549945965,1.5004,3726.0,3725.9,5.45412141]
[1753549946166,1.5004,3726.0,3725.9,2.24632141]
[1753549946560,1.7927,3726.0,3725.9,2.24632141]
[1753549948071,1.7927,3726.0,3725.9,1.83422141]
[1753549948265,2.32931,3726.0,3725.9,1.83422141]
[1753549948571,1.7927,3726.0,3725.9,1.83422141]
[1753549949367,1.7927,3726.0,3725.9,2.17442141]
[1753549949768,1.7927,3726.0,3725.9,2.21582141]
[1753549951061,1.5004,3726.0,3725.9,2.21582141]
[1753549953075,1.7987,3726.0,3725.9,1.67920141]
[1753549953682,1.7987,3726.0,3725.9,2.21582141]
[1753549953975,2.33531,3726.0,3725.9,1.67920141]
[1753549954277,1.7987,3726.0,3725.9,2.21582141]
[1753549955975,2.33531,3726.0,3725.9,1.33900141]
[1753549956175,2.33531,3726.0,3725.9,1.29760141]
[1753549956576,2.33531,3726.0,3725.9,1.30147128]
[1753549957674,2.33531,3726.0,3725.9,0.34617128]
[1753549962778,2.29864,3725.8,3725.7,0.956]
[1753549962978,2.29864,3725.8,3725.7,1.3025384]
[1753549964885,2.29864,3725.8,3725.7,1.6841384]
[1753549965687,1.762,3725.8,3725.7,1.6841384]
[1753549965887,2.29864,3725.8,3725.7,1.6841384]
[1753549968286,1.0238,3725.8,3725.7,1.6841384]
[1753549968590,2.00034,3725.8,3725.7,1.6841384]
[1753549969491,1.4637,3725.8,3725.7,2.2207884]
[1753549969788,2.00034,3725.8,3725.7,2.2207884]
[1753549969996,2.00034,3725.8,3725.7,1.6841384]
[1753549971488,1.4637,3725.8,3725.7,2.2207884]
[1753549971690,1.0238,3725.8,3725.7,2.2207884]
[1753549971888,0.2856,3726.3,3726.1,0.53658]
[1753549972087,0.3283,3726.3,3726.2,2.2207184]
[1753549972291,0.77664659,3726.3,3726.2,5.4285184]
[1753549972492,0.3283,3726.6,3726.5,0.53654]
[1753549972687,0.77673298,3726.7,3726.6,1.06232]
[1753549972887,0.77673401,3726.7,3726.6,1.4088584]
[1753549973192,1.10503401,3726.7,3726.6,1.4088584]
[1753549973394,1.10503401,3726.7,3726.6,2.1959584]
[1753549973893,1.39063401,3726.7,3726.6,5.4037584]
[1753549974094,1.39063401,3726.7,3726.6,2.1959584]
[1753549974495,1.39063401,3726.7,3726.6,1.6594384]
[1753549974695,2.33704401,3726.7,3726.6,1.65999981]
[1753549975195,2.77704401,3726.7,3726.6,1.65999981]
[1753549975397,2.24053401,3726.7,3726.6,2.19651981]
[1753549975892,2.77704401,3726.7,3726.6,1.65999981]
[1753549976090,2.24053401,3726.7,3726.6,1.65999981]
[1753549976291,0.77673401,3726.7,3726.6,5.40431981]
[1753549976490,0.6139,3726.9,3726.8,1.06229]
[1753549976694,0.6139,3726.9,3726.8,2.19648981]
[1753549977501,1.0238,3726.9,3726.8,2.19648981]
[1753549978291,0.6976,3727.2,3727.1,0.53645]
[1753549978495,0.6976,3727.2,3727.1,2.19174981]
[1753549978693,1.473249,3727.2,3727.1,2.19174981]
[1753549978899,1.770149,3727.2,3727.1,2.19174981]
[1753549979496,2.204049,3727.2,3727.1,2.19174981]
[1753549980089,2.503449,3727.2,3727.1,2.19174981]
[1753549980295,1.7278,3727.2,3727.1,2.19174981]
[1753549980697,0.9945,3727.2,3727.1,2.19409859]
[1753549980893,0.2969,3727.2,3727.1,2.19409859]
[1753549981094,0.4339,3727.4,3727.3,0.53642]
[1753549981095,0.2954,3727.4,3727.3,0.53642]
[1753549981296,0.2954,3727.7,3727.6,1.84458]
[1753549981494,0.2,3727.9,3727.6,1.84458]
[1753549981495,0.2,3727.9,3727.8,1.84455]
[1753549981700,0.9945,3728.5,3728.4,1.07736]
[1753549981900,2.50295425,3728.5,3728.4,2.19390859]
[1753549982403,1.76965425,3728.5,3728.4,2.19390859]
[1753549983301,2.20355425,3728.5,3728.4,2.19390859]
[1753549984902,1.07205425,3728.5,3728.4,5.40170859]
[1753549985103,1.1315,3728.8,3728.7,1.07732]
[1753549985302,1.9049346,3728.8,3728.7,2.19386859]
[1753549985596,1.4284,3728.8,3728.7,2.19386859]
[1753549986405,1.4284,3728.8,3728.7,1.65764859]
[1753549986805,1.7278,3728.8,3728.7,1.65764859]
[1753549987199,1.7278,3728.8,3728.7,2.19386859]
[1753549987404,1.7278,3728.8,3728.7,1.65764859]
[1753549988006,2.26401,3728.8,3728.7,1.33324859]
[1753549988402,1.7278,3728.8,3728.7,1.33324859]
[1753549989202,2.26401,3728.8,3728.7,1.33324859]
[1753549989609,1.7278,3728.8,3728.7,1.33117393]
[1753549989807,2.26401,3728.8,3728.7,1.33117393]
[1753549990007,2.26401,3728.8,3728.7,1.12337393]
[1753549990407,2.26401,3728.8,3728.7,0.65747393]
[1753549990598,2.26401,3728.8,3728.7,0.34737393]
[1753549991307,2.26401,3728.8,3728.7,0.81327393]
[1753549991904,2.26401,3728.8,3728.7,1.12337393]
[1753549992507,2.26401,3728.8,3728.7,0.34737393]
[1753549994216,2.26401,3728.8,3728.7,0.81327393]
[1753549994416,2.26401,3728.8,3728.7,1.12337393]
[1753549996315,1.7278,3728.8,3728.7,1.65959393]
[1753549996515,1.7278,3728.8,3728.7,1.65557393]
[1753549997126,0.7901,3728.8,3728.7,2.19179393]
[1753549997819,0.9945,3728.8,3728.7,2.19179393]
[1753549998325,1.4284,3728.8,3728.7,2.19179393]
[1753549999126,0.9945,3728.8,3728.7,2.19179393]
[1753550000014,1.7278,3728.8,3728.7,2.19179393]
[1753550001829,0.9945,3728.8,3728.7,2.19179393]
[1753550002526,0.2969,3728.8,3728.7,2.19179393]
[1753550003318,0.2969,3728.8,3728.7,2.19269855]
[1753550003726,0.5923,3728.8,3728.7,2.19269855]
[1753550003927,0.5923,3728.8,3728.7,2.19269839]
[1753550004126,1.98504,3729.3,3729.2,1.007]
[1753550004322,1.33538,3729.0,3728.9,0.5179]
[1753550004627,2.26398,3729.0,3728.9,1.33220602]
[1753550005617,1.7278,3729.0,3728.9,1.86839602]
[1753550007028,2.26398,3729.0,3728.9,1.12440602]
[1753550007329,2.26398,3729.0,3728.9,1.66059602]
[1753550007629,2.26398,3729.0,3728.9,0.34840602]
[1753550008531,2.26398,3729.0,3728.9,0.81160602]
[1753550009529,2.26398,3729.0,3728.9,1.10670602]
[1753550009731,2.26398,3729.0,3728.9,1.10966907]
[1753550010029,2.26398,3729.0,3728.9,1.31546907]
[1753550011633,2.26398,3729.0,3728.9,0.35136907]
[1753550012531,2.26398,3729.0,3728.9,0.81456907]
[1753550012733,2.26398,3729.0,3728.9,1.31546907]
[1753550013134,2.26398,3729.0,3728.9,1.30817623]
[1753550013739,3.04027712,3729.0,3728.9,1.30817623]
[1753550016432,3.04027712,3729.0,3728.9,0.9641]
[1753550026350,2.50409712,3729.0,3728.9,0.9641]
[1753550026551,3.04027712,3729.0,3728.9,0.9641]
[1753550029747,0.6915,3728.6,3728.5,0.9641]
[1753550029953,1.7548,3728.6,3728.5,1.50035]
[1753550030454,1.7548,3728.6,3728.5,1.82255]
[1753550032753,1.7548,3728.6,3728.5,1.2863]
[1753550032952,1.7548,3728.6,3728.5,0.9641]
[1753550033253,3.0671747,3728.6,3728.5,0.9641]
[1753550038063,0.8054,3728.2,3728.1,0.7398]
[1753550038263,2.3114347,3728.2,3728.1,0.7398]
[1753550038660,3.0348347,3728.2,3728.1,0.7398]
[1753550038862,3.0348347,3728.2,3728.1,0.9296]
[1753550040355,2.4985447,3728.2,3728.1,1.46591]
[1753550040565,1.7224,3728.2,3728.1,1.77911]
[1753550040764,0.3,3728.2,3728.1,1.77911]
[1753550041065,0.6845,3728.5,3728.4,1.77906]
[1753550041262,1.45967977,3728.5,3728.4,1.77906]
[1753550041468,1.74507977,3728.5,3728.4,1.2428]
[1753550041860,2.18387977,3728.5,3728.4,1.77906]
[1753550042369,2.49837977,3728.5,3728.4,1.77906]
[1753550044866,2.49837977,3728.5,3728.4,1.2428]
[1753550045061,2.49837977,3728.5,3728.4,1.77906]
[1753550045368,2.49837977,3728.5,3728.4,1.2428]
[1753550046268,3.03462977,3728.5,3728.4,1.2428]
[1753550048459,2.49837977,3728.5,3728.4,1.77906]
[1753550048665,3.03462977,3728.5,3728.4,1.2428]
[1753550048868,2.49837977,3728.5,3728.4,1.77906]
[1753550049068,2.49837977,3728.5,3728.4,1.2428]
[1753550049268,2.49837977,3728.5,3728.4,1.77906]
[1753550049568,1.74507977,3728.5,3728.4,1.77906]
[1753550049766,0.9699,3728.5,3728.4,1.77906]
[1753550051270,0.5854,3728.7,3728.6,1.77903]
[1753550051469,0.5854,3728.9,3728.8,1.03831]
[1753550051667,1.74751114,3728.9,3728.8,1.77901]
[1753550051866,2.50081114,3728.9,3728.8,1.2428]
[1753550052167,2.50081114,3728.9,3728.8,1.77901]
[1753550054060,1.74751114,3728.9,3728.8,1.77901]
[1753550054973,1.07761114,3728.9,3728.8,1.77901]
[1753550055166,0.3,3728.9,3728.8,1.77901]
[1753550055872,0.5854,3728.9,3728.8,1.77901]
[1753550058874,1.4087,3728.9,3728.8,1.77901]
[1753550059173,1.7232,3728.9,3728.8,0.9296]
[1753550059375,2.25939,3728.9,3728.8,0.9296]
[1753550059572,1.7232,3728.9,3728.8,0.9296]
[1753550059773,1.7232,3728.9,3728.8,1.46581]
[1753550060066,1.7232,3728.9,3728.8,1.77901]
[1753550060771,1.4087,3728.9,3728.8,1.77901]
[1753550060973,0.3,3728.9,3728.8,1.77901]
[1753550061173,0.5854,3729.1,3729.0,1.03828]
[1753550061375,0.5854,3729.1,3729.0,1.77898]
[1753550062277,0.7763,3729.1,3729.0,1.77898]
[1753550062477,0.9699,3729.1,3729.0,1.77898]
[1753550062770,2.25936,3729.1,3729.0,1.2428]
[1753550062972,2.25936,3729.1,3729.0,1.77898]
[1753550063367,2.50102885,3729.1,3729.0,1.46578]
[1753550063567,1.0242,3729.0,3728.9,0.96369]
[1753550063772,1.7232,3729.0,3728.9,1.27599]
[1753550063973,2.25938,3729.0,3728.9,0.7398]
[1753550064163,1.7232,3729.0,3728.9,1.46579]
[1753550065476,1.7232,3729.0,3728.9,1.77899]
[1753550065676,1.7232,3729.0,3728.9,1.2428]
[1753550065870,1.7232,3729.0,3728.9,1.77899]
[1753550066274,1.7232,3729.0,3728.9,0.9296]
[1753550066573,2.25938,3729.0,3728.9,0.9296]
[1753550067274,1.7232,3729.0,3728.9,1.46579]
[1753550068883,1.7232,3729.0,3728.9,1.2215]
[1753550069076,1.7232,3729.0,3728.9,1.75769]
[1753550069276,1.7232,3729.0,3728.9,1.2215]
[1753550069576,2.25938,3729.0,3728.9,1.2215]
[1753550072072,2.25938,3729.0,3728.9,1.75769]
[1753550072272,2.25938,3729.0,3728.9,1.2215]
[1753550073772,2.25938,3729.0,3728.6,0.5137]
[1753550073773,1.25262,3728.7,3728.6,0.5137]
[1753550074076,2.30342,3728.7,3728.6,0.5137]
[1753550074373,2.30342,3728.7,3728.6,1.234]
[1753550075074,2.30342,3728.7,3728.6,1.77023]
[1753550077281,1.7672,3728.7,3728.6,1.77023]
[1753550092082,1.7672,3728.7,3728.6,1.28033]
[1753550092283,1.7672,3728.4,3728.3,3.74408]